[Event "Karel Janecek Open 2024"]
[Site "Prague"]
[Date "2024.03.06"]
[Round "8.1"]
[White "Amar, Elham"]
[Black "Kourkoulos-Arditis, Stamatis"]
[Result "0-1"]
[ECO "C78"]
[WhiteElo "2555"]
[BlackElo "2547"]
[Annotator "TA"]
[PlyCount "206"]
[EventDate "2024.02.22"]
[EventType "swiss"]
[EventCountry "CZE"]
[SourceTitle "playchess.com"]
[Source "ChessBase"]
[SourceQuality "1"]
[TimeControl "40/5400+30:1800+30"]

{[%evp 12,206,47,31,42,37,44,69,47,53,38,25,79,70,60,33,40,45,65,60,62,81,64,81,73,72,67,25,45,35,32,0,0,20,126,0,114,56,46,-25,137,0,24,0,0,0,0,0,64,31,49,0,0,-46,-45,-58,-50,-127,-142,-150,-153,-159,-160,-161,-154,-155,-153,-274,-261,-222,-144,-147,-145,-155,-118,-128,-142,-235,-235,-303,-304,-293,-282,-293,-297,-285,-249,-346,-347,-332,-333,-333,-320,-586,-562,-530,-500,-426,-254,-724,-650,-591,-383,-383,-376,-375,-375,-368,-318,-702,-702,-702,-694,-664,-694,-746,-746,-739,-746,-739,-724,-717,-702,-694,-595,-687,-687,-687,-687,-664,-657,-654,-611,-383,0,-644,-644,-606,-558,-12794,-8775,-9953,-5958,-3057,-3876,-2873,-2514,-12839,-6195,-29954,-29958,-29963,-29967,-29966,-29966,-29971,-29972,-29970,-29972,-29972,-29974,-29973,-29976,-29976,-29976,-29976,-29977,-29973,-29975,-29979,-29980,-29985,-29981,-29982,-29982,-29986,-29987,-29987,-29988,-29988,-29989,-29989,-29986,-29986,-29986,-29986,-29986,-29986,-29987,-29987,-29988,-29989,-29990,-29992,-29993,-29993,-29994]} 1. e4 {[%emt 0:00:04]} e5 {[%emt 0:00:08]} 2. Nf3 {[%emt 0:00:19]} Nc6 {[%emt 0:00:07]} 3. Bb5 {[%emt 0:00:09]} a6 {[%emt 0:00:05]} 4. Ba4 {[%emt 0:00:06]} Nf6 {[%emt 0:00:05]} 5. O-O {[%emt 0:00:27]} Bc5 {[%emt 0:00:21]} 6. c3 {[%emt 0:00:36]} b5 {[%emt 0:00:05]} 7. Bc2 {[%emt 0:00:12]} d5 {[%emt 0:00:15]} 8. a4 {[%emt 0:00:49]} dxe4 {[%emt 0:03:37]} (8... Nxe4 $2 9. axb5 Ne7 10. Nxe5 $18) 9. axb5 $1 {[%emt 0:00:06]} Bg4 {[%emt 0:00:08] White is slightly better.} 10. bxc6 {[%emt 0:17:53][%cal Oh2h3]} exf3 {[%emt 0:00:26]} 11. gxf3 {[%emt 0:08:58]} Bh3 {[%emt 0:00:09]} (11... Be6 $11) 12. Re1 $1 $16 {[%emt 0:03:58][%cal Od2d4] aiming for d4!} O-O {[%emt 0:01:00]} 13. Ra5 $1 {[%emt 0:05:56]} Qd6 {[%emt 0:02:43]} 14. b4 $1 {[%emt 0:10:49]} Bxf2+ {[%emt 0:00:31]} 15. Kxf2 {[%emt 0:01:32]} e4 {[%emt 0:00:05]} 16. Kg1 {[%emt 0:11:55] Black must now prevent d4.} (16. Bxe4 Rae8 (16... Qxh2+ 17. Ke3 $16) 17. d3 Qxh2+ 18. Ke3 Nxe4 19. fxe4 f5 $11) 16... Rae8 {[%emt 0:01:05] And now ...exf3 would win.} 17. Re3 {[%emt 0:10:55][%cal Rf3e4]} (17. fxe4 Bg4 18. e5 (18. Re2 Nxe4 19. Na3 Nf2 $19) 18... Bxd1 (18... Rxe5 19. Raxe5 Bxd1 20. Bxd1 $11) 19. exd6 Rxe1+ 20. Kf2 Bxc2 $17) (17. Rxa6 exf3 18. Rf1 Re2 (18... Bxf1 $2 19. Qxf3 Bxa6 20. Qg3 $19) (18... Ng4 $2 19. Rf2 $19) 19. Rf2 Rxf2 20. Kxf2 Re8 (20... Qxh2+ 21. Ke3 Qe5+ 22. Kxf3 Qd5+ 23. Kg3 Qg2+ 24. Kf4 g5+ 25. Ke3 Re8+ 26. Be4 Qxe4+ 27. Kf2 Qg2#) 21. Qg1 Ng4+ 22. Kxf3 Nxh2+) 17... Nh5 {[%emt 0:01:38]} 18. Rg5 {[%emt 0:09:55] Dodges Qg6} (18. Rxh5 Qg6+) (18. Rxe4 $2 f5 19. Bb3+ Kh8 $19) 18... Qh6 {[%emt 0:00:17]} 19. f4 {[%emt 0:05:37]} (19. Rg3 $5 Nxg3 20. hxg3 exf3 21. Qxf3 $14) 19... Nxf4 {[%emt 0:00:20]} 20. Rgg3 {[%emt 0:00:21]} f5 {[%emt 0:04:36][%cal Oh3g4]} (20... Qxc6 $2 21. Rxh3 Nxh3+ 22. Rxh3 $18) 21. d3 {[%emt 0:04:10]} Bg4 {[%emt 0:18:56]} (21... Qxc6 $2 22. Ba4 (22. Rxh3 exd3 23. Bb3+ Kh8 $18) 22... Qb6 23. Bxe8 $18) 22. Qf1 {[%emt 0:00:04][%cal Rd3e4]} Nh5 {[%emt 0:01:04]} (22... Be2 $1 $11 {remains equal.} 23. Qf2 (23. Rxe2 $2 Nxe2+ 24. Qxe2 Qxc1+ 25. Qd1 Qh6 $17) 23... Bg4) 23. Rg2 {[%emt 0:02:15]} (23. Bb3+ $1 $16 Kh8 24. Bf7) 23... Qxc6 {[%emt 0:09:25]} (23... Nf4 $11 24. Rgg3 Nh5 (24... Be2 25. Qf2 $11)) 24. dxe4 {[%emt 0:00:25]} ({White should try} 24. Rf2 $16) 24... fxe4 $14 {[%emt 0:03:47]} 25. Bb3+ {[%emt 0:03:03]} (25. Rf2 $1 $14 Qg6 26. Bxe4 Bf5+ 27. Bg2 (27. Rg2 Bxe4 28. Rxg6 Rxf1+ 29. Kxf1 hxg6 $17) 27... Bxb1 28. Qc4+ Kh8 29. Qf7 (29. Qxc7 h6 $11)) 25... Be6 $2 {[%emt 0:02:29] [#]} ({Better is} 25... Kh8 $11 26. Qc4 Qd7) 26. Bxe6+ {[%emt 0:01:16]} (26. Qd1 $1 $16 Bxb3 27. Qxh5 (27. Qxb3+ Kh8 $15)) 26... Qxe6 {[%emt 0:00:07]} 27. Qd1 {[%emt 0:01:39]} Nf4 $40 {[%emt 0:04:23][%mdl 128] Black is up to no good.} 28. Rgg3 {[%emt 0:00:02]} Rd8 {[%emt 0:02:20]} 29. Nd2 {[%emt 0:00:19]} Kh8 {[%emt 0:17:51]} (29... Rd3 $11) 30. c4 {[%emt 0:01:08]} (30. Rxe4 $2 Qxe4 31. Nxe4 Rxd1+ $19) (30. Qe1 $5) 30... Qf6 {[%emt 0:06:42] Wards off Bb2} 31. Rxe4 {[%emt 0:00:28]} (31. Qe1 $1 $14 {is superior.} Nd3 (31... Rd3 $2 32. Nxe4 Qd4 33. Nf2 $18) 32. Nxe4 Nxe1 33. Nxf6) 31... Nd3 $1 $11 {[%emt 0:00:11]} 32. Rxd3 {[%emt 0:00:32]} Rxd3 $15 {[%emt 0:02:38]} (32... Qf2+ 33. Kh1 Rxd3 34. Qe1 $17) 33. Qe2 {[%emt 0:00:23]} Rd4 {[%emt 0:08:36] Strongly threatening ...Qg6+. Some like it hot} 34. Rxd4 {[%emt 0:00:31]} (34. Re3 $15) 34... Qxd4+ $17 {[%emt 0:00:04]} 35. Kg2 {[%emt 0:00:02] [#]} Qc3 $1 {[%emt 0:00:34][%csl LRb4,LRc1][%mdl 1024] Against Nf3. Black has strong compensation. Black has more active pieces.} 36. Qe7 {[%emt 0:00:40]} Rg8 {[%emt 0:00:52]} 37. Qe1 {[%emt 0:00:03]} Qxb4 {[%emt 0:00:42]} 38. Qe3 {[%emt 0:01:01]} Rd8 {[%emt 0:03:13]} 39. c5 {[%emt 0:00:51]} (39. Kf2 $17) 39... Qg4+ $19 {[%emt 0:04:11]} 40. Kf2 {[%emt 0:00:05]} Qd1 {[%emt 0:02:17]} 41. Nf3 {[%emt 0:02:54]} Qc2+ {[%emt 0:05:39]} 42. Kg3 {[%emt 0:02:32]} h6 {[%emt 0:01:24]} 43. Bd2 {[%emt 0:08:23]} Qf5 {[%emt 0:04:24]} 44. Ba5 {[%emt 0:08:35]} (44. Bb4 $17) 44... Rd3 {[%emt 0:02:55]} 45. Qe2 {[%emt 0:02:34]} Qg5+ {[%emt 0:01:53]} 46. Kf2 {[%emt 0:02:17]} Qxc5+ {[%emt 0:00:09]} 47. Kg2 {[%emt 0:00:03]} Rd6 {[%emt 0:08:44]} 48. Be1 {[%emt 0:00:37]} Qd5 {[%emt 0:00:11]} 49. Bg3 {[%emt 0:01:37]} Re6 {[%emt 0:00:10]} 50. Be5 {[%emt 0:00:56]} a5 {[%emt 0:00:27] Threatens to win with ...a4.} 51. Qb2 {[%emt 0:00:33]} Rb6 {[%emt 0:01:39]} (51... Rg6+ 52. Kf2 $17) 52. Bxg7+ {[%emt 0:01:47]} (52. Qc2 Qc6 53. Qe2) 52... Kg8 {[%emt 0:04:12]} 53. Qc2 {[%emt 0:01:06]} Rc6 {[%emt 0:02:42]} (53... Kxg7 $2 54. Qxc7+ Kg8 55. Qxb6 $18) 54. Bc3 {[%emt 0:00:06]} Qc4 {[%emt 0:00:30]} (54... a4 $142 55. Qb2 Qb3 56. Qxb3+ axb3) 55. Qd2 $2 {[%emt 0:03:54]} (55. Ne5 Qd5+ (55... Qxc3 $2 56. Qa2+ Kh8 57. Nxc6 $19) 56. Kf1 Qh1+ 57. Ke2 Qxh2+ 58. Kd1 Qg1+ 59. Kd2 Rd6+ 60. Nd3) 55... Qxc3 {[%emt 0:00:24][%mdl 4096] Endgame. KQR-KQN} 56. Qd5+ {[%emt 0:00:16]} Kh7 {[%emt 0:01:59]} 57. Qd7+ {[%emt 0:00:32]} Qg7+ {[%emt 0:00:32]} 58. Ng5+ {[%emt 0:00:03]} hxg5 {[%emt 0:00:07]} 59. Qxc6 {[%emt 0:00:04] KQ-KQ} Qe5 {[%emt 0:00:17] Inhibits Qe4+.} 60. h3 $2 {[%emt 0:01:34]} (60. Kg1) 60... Kg7 {[%emt 0:00:32]} 61. Kh1 {[%emt 0:00:31]} Kf7 {[%emt 0:01:15]} 62. Qd7+ {[%emt 0:00:29]} Kf6 {[%emt 0:00:15]} 63. Qc6+ {[%emt 0:00:25]} Ke7 {[%emt 0:00:23]} 64. Kg2 {[%emt 0:00:16]} Qe2+ {[%emt 0:00:42]} 65. Kg3 {[%emt 0:00:35]} Qe3+ {[%emt 0:00:59]} 66. Kg2 {[%emt 0:00:04]} Qd2+ {[%emt 0:00:50]} 67. Kh1 {[%emt 0:00:43]} Qe1+ {[%emt 0:01:06]} 68. Kg2 {[%emt 0:00:14]} Qe5 {[%emt 0:00:06]} 69. Kh1 {[%emt 0:00:36]} Kd8 {[%emt 0:00:03]} 70. Kg2 {[%emt 0:00:21]} Qf5 {[%emt 0:00:04]} 71. Kg1 {[%emt 0:01:15]} Qb1+ {[%emt 0:01:59]} (71... Qxh3 72. Qd5+ Qd7 73. Qg8+ (73. Qxg5+ Kc8 $15) 73... Ke7 (73... Qe8 74. Qxg5+ Kc8 75. Qxa5 $11) 74. Qxg5+ Kd6 75. Qd2+ Kc6 76. Qxa5 $15) 72. Kg2 {[%emt 0:00:10]} Qf5 $2 {[%emt 0:00:13] Against Qd5+} (72... Qa2+ 73. Kf1 Qb1+ 74. Ke2 Qf5) 73. Kg1 $1 {[%emt 0:00:05]} Kc8 {[%emt 0:00:06]} (73... Qxh3 74. Qd5+ Qd7 75. Qxg5+ Kc8 76. Qxa5 $15) 74. Kg2 {[%emt 0:00:22]} Kb8 {[%emt 0:00:08] Inhibits Qa8+.} 75. Kg1 {[%emt 0:01:07]} Qb1+ {[%emt 0:00:04]} ({Weaker is} 75... Qxh3 76. Qb5+ Kc8 77. Qe8+ Kb7 78. Qb5+ Ka7 (78... Kc8 79. Qe8+ Kb7 80. Qb5+ Ka7 81. Qxa5+ Kb7 82. Qb5+ Kc8 83. Qe8+ Kb7 84. Qb5+ Ka8 85. Qa5+ Kb8 86. Qb5+ Ka7 87. Qa5+ Kb7 88. Qb5+ $11) 79. Qxa5+ Kb7 80. Qxg5 $11) 76. Kh2 {[%emt 0:00:04]} Qb4 {[%emt 0:00:13]} 77. Qe8+ {[%emt 0:01:15]} Kb7 {[%emt 0:00:07] ...a4 is the strong threat.} 78. Qg8 {[%emt 0:00:29]} Qf4+ {[%emt 0:00:15]} 79. Kg2 {[%emt 0:00:06]} a4 {[%emt 0:00:05] ( -> ...c5)} 80. Qd5+ {[%emt 0:00:18]} Kb6 {[%emt 0:00:09] Black mates.} 81. Qg8 {[%emt 0:01:04]} c5 {[%emt 0:00:40]} 82. Qd8+ {[%emt 0:00:18]} Kb5 {[%emt 0:00:35]} 83. Qe8+ {[%emt 0:00:12]} Kb4 {[%emt 0:00:27]} 84. Qe1+ {[%emt 0:00:09]} Kc4 {[%emt 0:00:46]} 85. Qe2+ {[%emt 0:01:02]} Kc3 {[%emt 0:00:13]} 86. Qe7 {[%emt 0:00:49]} Qd4 {[%emt 0:02:24]} 87. Qa7 {[%emt 0:00:28]} Kb2 {[%emt 0:00:35]} 88. Qb6+ {[%emt 0:00:27]} Kc1 {[%emt 0:00:11]} 89. Qa7 {[%emt 0:00:38] [#]} a3 $1 {[%emt 0:00:19]} 90. h4 {[%emt 0:00:29]} (90. Kg3 Qf4+) 90... gxh4 {[%emt 0:00:11]} ({And not} 90... Qxh4 91. Qxa3+ Kd2 92. Qxc5 $11) 91. Kh1 {[%emt 0:00:26]} Kb2 {[%emt 0:01:08]} 92. Qb6+ {[%emt 0:00:15]} Ka1 {[%emt 0:00:20]} 93. Qb3 {[%emt 0:00:45]} Qb2 {[%emt 0:00:06]} 94. Qf3 {[%emt 0:00:35]} c4 {[%emt 0:00:29]} 95. Qf1+ {[%emt 0:00:24]} Qb1 {[%emt 0:00:51]} 96. Kh2 {[%emt 0:00:04] [#]} h3 $1 {[%emt 0:00:30]} 97. Qf8 {[%emt 0:00:56]} Qb2+ {[%emt 0:01:16]} 98. Kxh3 {[%emt 0:00:24]} c3 {[%emt 0:00:13]} 99. Qf1+ {[%emt 0:00:16]} Ka2 {[%emt 0:00:05]} 100. Qf7+ {[%emt 0:00:55]} Qb3 {[%emt 0:00:04]} 101. Qf2+ {[%emt 0:00:17]} c2+ {[%emt 0:00:04]} 102. Kh2 {[%emt 0:00:24]} Qb2 {[%emt 0:00:21]} 103. Qf7+ {[%emt 0:00:49]} Ka1 {[%emt 0:00:06] Weighted Error Value: White=0.45/Black=0.26 (precise) .  Mistake:       	White=12    	Black=6      Inaccurate:     	White=3     	Black=1      OK:         	White=19    	Black=20     Best:        	White=9     	Black=11     Strong:       	White=4     	Black=1} 0-1

[Event "Karel Janecek Open 2024"]
[Site "Prague"]
[Date "2024.03.06"]
[Round "8.2"]
[White "Polak, Tomas"]
[Black "Bharath Subramaniyam H"]
[Result "1/2-1/2"]
[ECO "D40"]
[WhiteElo "2525"]
[BlackElo "2515"]
[Annotator "TA"]
[PlyCount "67"]
[EventDate "2024.02.22"]
[EventType "swiss"]
[EventCountry "CZE"]
[SourceTitle "playchess.com"]
[Source "ChessBase"]
[SourceQuality "1"]
[TimeControl "40/5400+30:1800+30"]

{[%evp 18,67,17,7,12,0,1,7,14,0,1,6,7,0,3,0,0,0,3,10,33,27,34,33,32,37,38,44,45,27,28,3,37,35,32,27,31,34,34,12,22,14,58,23,17,8,19,0,8,1,19,0]} 1. Nf3 {[%emt 0:00:07]} c5 {[%emt 0:01:47]} 2. c4 {[%emt 0:00:06]} Nf6 {[%emt 0:00:27]} 3. Nc3 {[%emt 0:00:24]} Nc6 {[%emt 0:00:09]} 4. e3 {[%emt 0:00:58]} e6 {[%emt 0:01:12]} 5. d4 {[%emt 0:00:15]} d5 {[%emt 0:00:17]} 6. a3 {[%emt 0:00:33]} a6 {[%emt 0:00:12]} 7. dxc5 {[%emt 0:00:47]} Bxc5 {[%emt 0:00:43]} 8. b4 {[%emt 0:00:14]} Bd6 {[%emt 0:04:16]} 9. Bb2 {[%emt 0:02:30]} O-O {[%emt 0:00:26]} 10. Rc1 {[%emt 0:01:36]} dxc4 {[%emt 0:10:45]} 11. Bxc4 {[%emt 0:00:53]} b5 {[%emt 0:02:33]} 12. Bd3 {[%emt 0:11:55] [#] And now Ne4 would win.} Ne5 {[%emt 0:04:29]} 13. Nxe5 {[%emt 0:11:39]} Bxe5 {[%emt 0:00:11]} 14. f4 {[%emt 0:00:56]} Bxc3+ {[%emt 0:01:44]} 15. Bxc3 {[%emt 0:01:33]} Bb7 {[%emt 0:00:50]} 16. O-O {[%emt 0:08:52]} Rc8 {[%emt 0:20:16]} 17. Bb1 {[%emt 0:14:10]} Qxd1 {[%emt 0:21:33]} 18. Rfxd1 {[%emt 0:00:12]} Be4 {[%emt 0:05:23]} 19. Bxf6 {[%emt 0:09:11]} Bxb1 {[%emt 0:00:19]} 20. Be7 {[%emt 0:00:12]} Rxc1 {[%emt 0:01:15]} 21. Rxc1 {[%emt 0:00:05]} Re8 {[%emt 0:00:09]} 22. Rxb1 {[%emt 0:02:00]} Rxe7 $14 {[%emt 0:00:01][%mdl 4096] Endgame. KR-KR} 23. Rc1 {[%emt 0:00:07] [#] Prevents Rc7. Intending Rc8+ and mate.} Kf8 {[%emt 0:01:08]} 24. Rc8+ {[%emt 0:03:59]} Re8 {[%emt 0:00:14]} 25. Rc6 {[%emt 0:00:04]} Ra8 {[%emt 0:00:19]} 26. Kf2 {[%emt 0:04:49]} Ra7 {[%emt 0:02:55]} 27. Rb6 {[%emt 0:05:13][%cal Bc6b6,Bb6b8,Bb8h8][%mdl 32]} Ke7 {[%emt 0:00:49]} 28. g4 {[%emt 0:04:25]} Kd7 $1 {[%emt 0:06:26] Hoping for ...Kc7.} 29. Rb8 $1 {[%emt 0:01:07]} Kc6 {[%emt 0:07:51]} 30. Rh8 {[%emt 0:12:38]} h6 {[%emt 0:00:18]} 31. Rg8 {[%emt 0:00:28] The position is equal.} g6 {[%emt 0:02:19]} 32. Rc8+ {[%emt 0:02:15]} Kd6 {[%emt 0:01:30]} 33. Rd8+ {[%emt 0:00:34]} Kc6 {[%emt 0:01:28]} 34. Rc8+ {[%emt 0:01:39] Weighted Error Value: White=0.06 (flawless) /Black=0.05 (flawless) .  Inaccurate:     	White=1     	Black=2      OK:         	White=8     	Black=12     Best:        	---       	Black=2      Strong:       	White=1     	Black=1} 1/2-1/2

[Event "Karel Janecek Open 2024"]
[Site "Prague"]
[Date "2024.03.06"]
[Round "8.3"]
[White "Zhao, Yuanhe"]
[Black "Safarli, Eltaj"]
[Result "1/2-1/2"]
[ECO "A37"]
[WhiteElo "2461"]
[BlackElo "2604"]
[Annotator "TA"]
[PlyCount "31"]
[EventDate "2024.02.22"]
[EventType "swiss"]
[EventCountry "CZE"]
[SourceTitle "playchess.com"]
[Source "ChessBase"]
[SourceQuality "1"]
[TimeControl "40/5400+30:1800+30"]

{[%evp 26,31,0,0,8,0,0,0]} 1. Nf3 {[%emt 0:00:08]} c5 {[%emt 0:00:34]} 2. c4 {[%emt 0:00:31]} Nc6 {[%emt 0:00:05]} 3. Nc3 {[%emt 0:00:31]} e5 {[%emt 0:01:01]} 4. g3 {[%emt 0:01:17]} g6 {[%emt 0:00:11]} 5. Bg2 {[%emt 0:00:32]} Bg7 {[%emt 0:00:05]} 6. O-O {[%emt 0:00:45]} Nge7 {[%emt 0:00:43]} 7. Ne1 {[%emt 0:01:08][%cal Bf3e1,Be1c2,Bc2e3,Be3d5][%mdl 32]} d6 {[%emt 0:01:53]} 8. Nc2 {[%emt 0:01:33]} Be6 {[%emt 0:01:30]} 9. Ne3 {[%emt 0:02:15]} O-O {[%emt 0:04:27]} 10. d3 {[%emt 0:03:28]} Rb8 {[%emt 0:00:28]} 11. Ned5 {[%emt 0:02:14]} a6 {[%emt 0:02:23]} 12. a4 {[%emt 0:00:07]} Qd7 {[%emt 0:03:50]} 13. Nb6 {[%emt 0:03:17]} Qd8 {[%emt 0:00:20]} 14. Nbd5 {[%emt 0:00:11] The position is equal.} Qd7 {[%emt 0:10:00]} 15. Nb6 {[%emt 0:02:38]} Qd8 {[%emt 0:00:05]} 16. Nbd5 {[%emt 0:00:07] An uneventful encounter.   Weighted Error Value: White=0.04 (flawless) /Black=0.04 (flawless) .  OK:         	White=1     	Black=1} 1/2-1/2

[Event "Karel Janecek Open 2024"]
[Site "Prague"]
[Date "2024.03.06"]
[Round "8.4"]
[White "Sethuraman, S.P."]
[Black "Harikrishnan.A.Ra"]
[Result "1-0"]
[ECO "D12"]
[WhiteElo "2594"]
[BlackElo "2448"]
[Annotator "TA"]
[PlyCount "77"]
[EventDate "2024.02.22"]
[EventType "swiss"]
[EventCountry "CZE"]
[SourceTitle "playchess.com"]
[Source "ChessBase"]
[SourceQuality "1"]
[TimeControl "40/5400+30:1800+30"]

{[%evp 18,77,43,52,53,22,58,22,17,-10,21,30,28,12,43,27,25,33,49,15,20,20,14,0,0,0,0,0,25,20,20,0,19,0,2,12,17,0,252,-209,-249,-250,-233,-288,0,0,0,0,0,-337,137,-308,0,0,500,391,29976,29977,29972,29976,29997,29998]} 1. d4 {[%emt 0:00:14]} d5 {[%emt 0:00:13]} 2. c4 {[%emt 0:00:14]} c6 {[%emt 0:00:08]} 3. Nf3 {[%emt 0:00:18]} Nf6 {[%emt 0:00:05]} 4. e3 {[%emt 0:00:08]} Bf5 {[%emt 0:00:37]} 5. Nc3 {[%emt 0:00:09]} e6 {[%emt 0:00:22]} 6. Nh4 {[%emt 0:00:10]} Be4 {[%emt 0:00:43]} 7. f3 {[%emt 0:00:08]} Bg6 {[%emt 0:00:03] D12: Slav Defence: 3 Nf3 Nf6 4 e3 Bf5.} 8. Bd2 {[%emt 0:00:32]} dxc4 {[%emt 0:00:16]} 9. Bxc4 {[%emt 0:00:42]} b5 {[%emt 0:00:03]} 10. Nxg6 {[%emt 0:00:20]} hxg6 {[%emt 0:00:04]} 11. Bd3 {[%emt 0:00:05]} a6 $146 {[%emt 0:24:35]} ({Predecessor:} 11... Nbd7 12. Qe2 a6 13. Ne4 c5 14. Nxc5 Bxc5 15. dxc5 Nxc5 16. Bc2 Qd6 17. O-O-O O-O {½-½ Injac,T (2426)-Iglesias,Y (2259) EU-Cup (Women) 27th 2023 (2.3)}) 12. Qe2 {[%emt 0:00:23]} c5 {[%emt 0:01:48]} 13. O-O-O {[%emt 0:17:35]} Nc6 {[%emt 0:12:37]} 14. dxc5 {[%emt 0:03:04]} Bxc5 {[%emt 0:00:06]} 15. Kb1 {[%emt 0:05:16]} Qb6 {[%emt 0:12:09]} 16. Ne4 {[%emt 0:02:35]} Be7 {[%emt 0:02:50]} 17. Nxf6+ {[%emt 0:03:40]} Bxf6 {[%emt 0:01:52]} 18. Be4 {[%emt 0:00:04]} Rc8 {[%emt 0:02:29]} 19. g4 {[%emt 0:03:29]} Na5 {[%emt 0:08:05]} 20. f4 {[%emt 0:01:15]} Nc4 {[%emt 0:03:53]} 21. Bc1 {[%emt 0:00:56]} g5 {[%emt 0:06:21]} 22. h4 {[%emt 0:02:01]} gxh4 {[%emt 0:02:30]} 23. g5 {[%emt 0:01:14]} Be7 {[%emt 0:00:44]} 24. Bd3 {[%emt 0:08:19]} Qc5 {[%emt 0:04:43]} 25. g6 {[%emt 0:05:49]} Bf6 {[%emt 0:04:59]} 26. e4 {[%emt 0:11:35]} e5 $1 {[%emt 0:00:59]} 27. Qg4 {[%emt 0:03:58]} exf4 $2 {[%emt 0:01:26][%mdl 8192]} (27... O-O $11 {and Black is okay.} 28. Bxc4 Qxc4 29. fxe5 Be7) 28. Bxc4 $4 {[%emt 0:21:23][%mdl 8192]} (28. Bxf4 $18 {was the only winning move.} O-O (28... Nxb2 29. Bxb5+ Kf8 30. Bd6+ Kg8 31. gxf7+ Kxf7 32. Bxc5 Rhd8 33. Rd7+ Rxd7 34. Qxd7+) 29. gxf7+ Rxf7 30. e5 Nxb2 31. Be3 (31. exf6 Nxd1 32. Bg5 Nc3+ 33. Ka1 Ne4 $14) (31. Rc1 Nc4 $11) 31... Qxe5 (31... Qc3 $2 32. Bd4 $18) 32. Qxc8+ Rf8 33. Bh7+ Kxh7 34. Qc2+ Kg8 35. Bd4 Qxd4 36. Rxd4 Bxd4 37. Qc6 (37. Rxh4 $2 Rf1+ $19)) 28... Qxc4 $19 {[%emt 0:00:05]} 29. e5 {[%emt 0:01:06]} Bxe5 {[%emt 0:00:45]} 30. Rhe1 {[%emt 0:06:06] [#]} Kf8 $2 {[%emt 0:00:46]} (30... O-O $1 $19 31. Qh5 (31. gxf7+ $2 Rxf7 32. Re2 Rfc7 $19) 31... fxg6 (31... Qc2+ 32. Ka1 $16) 32. Qxe5 f3) 31. Qf5 $11 {[%emt 0:00:52]} Bf6 {[%emt 0:01:01]} 32. gxf7 {[%emt 0:01:58]} Kxf7 {[%emt 0:00:58]} 33. Rd7+ $2 {[%emt 0:00:41][%mdl 8192]} (33. Bxf4 $11 Rhd8 34. Qh5+ Kf8 (34... Kg8 35. Rxd8+ Rxd8 36. Re8+ Rxe8 37. Qxe8+ Kh7 38. Qh5+ Kg8 39. Qe8+ Kh7 40. Qh5+ Kg8 41. Qe8+ $11) 35. Rxd8+ Rxd8 36. Bd6+ Kg8 37. Re8+ Rxe8 38. Qxe8+ Kh7 39. Qh5+ Kg8 40. Qe8+ Kh7 41. Qh5+ Kg8 42. Qe8+) 33... Kf8 $2 {[%emt 0:00:41]} ({Better is} 33... Kg8 $19 {[%cal Oh8h5] Strongly threatening ...Rh5!} 34. Rd5 Qc6) 34. a3 $2 {[%emt 0:00:18][%mdl 8192]} (34. Bxf4 $16 {[%cal Of5f6] is necessary to keep the advantage. Qxf6+! would kill now.} Rh5 35. Qg6 (35. Qxh5 $2 Qc2+ 36. Ka1 Bxb2#) (35. Bd6+ $2 Kg8 $19)) 34... h3 $2 {[%emt 0:01:31]} (34... Qc6 $19 {[%cal Oh8h5] Hoping for ...Rh5!} 35. Rde7 Rh5 (35... Qc2+ 36. Qxc2 Rxc2 37. Re8+ Kf7 38. Rxh8 $14) 36. Qxh5 Bxe7 37. Bxf4 Bf6) 35. Rd6 $11 {[%emt 0:00:28]} Rh6 $2 {[%emt 0:01:38][%mdl 8192]} (35... h2 $11 36. Rxf6+ gxf6 37. Qxf6+ Kg8 38. Qg6+ Kf8 39. Qf5+ (39. Qf6+ Kg8 $11) 39... Kg8 (39... Kg7 40. Re7+ Kh6 41. Bxf4+) 40. Qg6+ Kf8 41. Qf5+ (41. Qf6+ Kg8 $11) 41... Kg8 (41... Kg7 42. Re7+ Kh6 43. Bxf4+) 42. Qg6+) 36. Bxf4 $18 {[%emt 0:00:19]} Re8 $2 {[%emt 0:04:41]} (36... Kg8 $18 37. Bxh6 Bxb2) 37. Rxe8+ {[%emt 0:00:22]} Kxe8 {[%emt 0:00:01]} 38. Bxh6 {[%emt 0:00:13]} h2 {[%emt 0:00:01]} 39. Qd7+ {[%emt 0:00:11]} 1-0

[Event "Karel Janecek Open 2024"]
[Site "Prague"]
[Date "2024.03.06"]
[Round "8.5"]
[White "Li, Di"]
[Black "Neuman, Petr"]
[Result "0-1"]
[ECO "A21"]
[WhiteElo "2563"]
[BlackElo "2398"]
[Annotator "TA"]
[PlyCount "38"]
[EventDate "2024.02.22"]
[EventType "swiss"]
[EventCountry "CZE"]
[SourceTitle "playchess.com"]
[Source "ChessBase"]
[SourceQuality "1"]
[TimeControl "40/5400+30:1800+30"]

{[%evp 11,38,13,24,0,0,-13,10,-22,0,-5,-32,-78,0,0,0,0,0,-100,-100,-73,-53,-278,-275,-297,-282,-293,-276,-296,-284]} 1. c4 {[%emt 0:00:08]} e5 {[%emt 0:01:58][%cal Be7e5,Be5e4][%mdl 32]} 2. Nc3 {[%emt 0:00:17]} d6 {[%emt 0:00:30]} 3. Nf3 {[%emt 0:01:20]} f5 {[%emt 0:00:18]} 4. d4 {[%emt 0:02:19]} e4 {[%emt 0:00:09]} 5. Ng5 {[%emt 0:00:13]} h6 {[%emt 0:04:59]} 6. Nh3 {[%emt 0:00:06]} g5 {[%emt 0:00:09]} 7. f3 {[%emt 0:03:57]} exf3 $1 {[%emt 0:00:27]} 8. gxf3 {[%emt 0:00:59]} Bg7 {[%emt 0:01:08]} 9. Rg1 {[%emt 0:21:45] The position is equal.} Qe7 {[%emt 0:02:55]} 10. Nd5 {[%emt 0:07:30]} Qf7 {[%emt 0:00:28]} 11. Qa4+ {[%emt 0:03:52]} (11. e3 $15) 11... Nc6 {[%emt 0:02:27]} (11... Kd8 $1 $17 {[%cal Ob8c6] Threatens to win with ...Nc6!} 12. Nf2 Ne7 13. Nxe7 Qxe7) 12. Bxg5 $1 $11 {[%emt 0:03:58]} hxg5 {[%emt 0:04:39]} 13. Nxg5 {[%emt 0:00:04]} Qh5 {[%emt 0:03:52] And now ...Qh4+ would win.} (13... Qd7 14. Ne6 Bxd4 15. Nxd4 (15. Nexc7+ Kd8 $15) 15... Nxd4 16. Qd1 (16. Nxc7+ $2 Kd8 $19) (16. Rxg8+ Kf7 $16) 16... Nxf3+ 17. exf3 Qe6+ 18. Be2 $18) 14. Nxc7+ {[%emt 0:03:11] [#]} (14. O-O-O $1 $11 Kd8 (14... Qxh2 $2 15. Rg2 $18) 15. Kb1) 14... Kd7 $1 $17 {[%emt 0:01:01]} 15. Nxa8 {[%emt 0:09:21]} Bxd4 {[%emt 0:02:28]} (15... Qh4+ $5 16. Rg3 f4 $17) 16. Qb5 $2 {[%emt 0:11:23] [#] Now White is beyond hope.} Nge7 $1 $19 {[%emt 0:03:46] Black has a decisive advantage.} (16... Bxg1 17. Qxf5+ Ke7 18. Qxc8 $17) 17. Rg2 {[%emt 0:03:35]} ({Avoid the trap} 17. e3 $2 Bxe3 18. Rg2 Bxg5 $19) 17... Qh4+ {[%emt 0:03:07]} 18. Kd1 {[%emt 0:00:02]} Be3 {[%emt 0:00:57]} 19. f4 {[%emt 0:00:07]} b6 {[%emt 0:04:59] Weighted Error Value: White=0.46/Black=0.10 (very precise) .  Loses game:     	White=1     	---        Mistake:       	White=2     	Black=1      Inaccurate:     	White=1     	---        OK:         	White=3     	Black=4      Best:        	White=1     	---        Strong:       	White=1     	Black=3} ({Less strong is} 19... Bxf4 20. Nf3 Qf6 21. Qb3 $17) 0-1